Workbook

Sheet Raporttinäkymä
N1: =BudgetName&" INTERAKTIIVINEN BUDJETTI" -> SARION PERHE 2012 INTERAKTIIVINEN BUDJETTI
A3: =kaaviotiedot!C38 -> €4,000
D5: tulot
A7: =kaaviotiedot!C39 -> €5,933
D9: kulut
A11: =kaaviotiedot!D40& "€"&kaaviotiedot!C40 -> -€1933
D13: kassavirta

Sheet Budjetti
C1: tammi | D1: helmi | E1: maalis | F1: huhti | G1: touko | H1: kesä | I1: heinä | J1: elo | K1: syys | L1: loka | M1: marras | N1: joulu | O1: vuosi | P1: keskiarvo
B5: Aloitussaldo | C5: 1000
B6: Tulot yhteensä | C6: =SUM(tblIncome[tammi]) -> 4222 | D6: =SUM(tblIncome[helmi]) -> 9033 | E6: =SUM(tblIncome[maalis]) -> 4000 | F6: =SUM(tblIncome[huhti]) -> 4045 | G6: =SUM(tblIncome[touko]) -> 9000 | H6: =SUM(tblIncome[kesä]) -> 1525 | I6: =SUM(tblIncome[heinä]) -> 1500 | J6: =SUM(tblIncome[elo]) -> 6500 | K6: =SUM(tblIncome[syys]) -> 4000 | L6: =SUM(tblIncome[loka]) -> 4000 | M6: =SUM(tblIncome[marras]) -> 9000 | N6: =SUM(tblIncome[joulu]) -> 4000 | O6: =SUM(tblIncome[vuosi]) -> 60825 | P6: =O6/12 -> 5069
B7: Kulut yhteensä | C7: =SUM(tblExpenseCategory_01[tammi],tblExpenseCategory_02[tammi],tblExpenseCategory_03[tammi],tblExpenseCategory_04[tammi],tblExpenseCategory_05[tammi],tblExpenseCategory_06[tammi],tblExpenseCategory_07[tammi],tblExpenseCategory_08[tammi],tblExpenseCategory_09[tammi],tblExpenseCategory_10[tammi],tblExpenseCategory_11[tammi],tblExpenseCategory_12[tammi],tblExpenseCategory_13[tammi],tblExpenseCategory_14[tammi],tblExpenseCategory_15[tammi]) -> 7936 | D7: =SUM(tblExpenseCategory_01[helmi],tblExpenseCategory_02[helmi],tblExpenseCategory_03[helmi],tblExpenseCategory_04[helmi],tblExpenseCategory_05[helmi],tblExpenseCategory_06[helmi],tblExpenseCategory_07[helmi],tblExpenseCategory_08[helmi],tblExpenseCategory_09[helmi],tblExpenseCategory_10[helmi],tblExpenseCategory_11[helmi],tblExpenseCategory_12[helmi],tblExpenseCategory_13[helmi],tblExpenseCategory_14[helmi],tblExpenseCategory_15[helmi]) -> 5243 | E7: =SUM(tblExpenseCategory_01[maalis],tblExpenseCategory_02[maalis],tblExpenseCategory_03[maalis],tblExpenseCategory_04[maalis],tblExpenseCategory_05[maalis],tblExpenseCategory_06[maalis],tblExpenseCategory_07[maalis],tblExpenseCategory_08[maalis],tblExpenseCategory_09[maalis],tblExpenseCategory_10[maalis],tblExpenseCategory_11[maalis],tblExpenseCategory_12[maalis],tblExpenseCategory_13[maalis],tblExpenseCategory_14[maalis],tblExpenseCategory_15[maalis]) -> 5933 | F7: =SUM(tblExpenseCategory_01[huhti],tblExpenseCategory_02[huhti],tblExpenseCategory_03[huhti],tblExpenseCategory_04[huhti],tblExpenseCategory_05[huhti],tblExpenseCategory_06[huhti],tblExpenseCategory_07[huhti],tblExpenseCategory_08[huhti],tblExpenseCategory_09[huhti],tblExpenseCategory_10[huhti],tblExpenseCategory_11[huhti],tblExpenseCategory_12[huhti],tblExpenseCategory_13[huhti],tblExpenseCategory_14[huhti],tblExpenseCategory_15[huhti]) -> 5858 | G7: =SUM(tblExpenseCategory_01[touko],tblExpenseCategory_02[touko],tblExpenseCategory_03[touko],tblExpenseCategory_04[touko],tblExpenseCategory_05[touko],tblExpenseCategory_06[touko],tblExpenseCategory_07[touko],tblExpenseCategory_08[touko],tblExpenseCategory_09[touko],tblExpenseCategory_10[touko],tblExpenseCategory_11[touko],tblExpenseCategory_12[touko],tblExpenseCategory_13[touko],tblExpenseCategory_14[touko],tblExpenseCategory_15[touko]) -> 5468 | H7: =SUM(tblExpenseCategory_01[kesä],tblExpenseCategory_02[kesä],tblExpenseCategory_03[kesä],tblExpenseCategory_04[kesä],tblExpenseCategory_05[kesä],tblExpenseCategory_06[kesä],tblExpenseCategory_07[kesä],tblExpenseCategory_08[kesä],tblExpenseCategory_09[kesä],tblExpenseCategory_10[kesä],tblExpenseCategory_11[kesä],tblExpenseCategory_12[kesä],tblExpenseCategory_13[kesä],tblExpenseCategory_14[kesä],tblExpenseCategory_15[kesä]) -> 5118 | I7: =SUM(tblExpenseCategory_01[heinä],tblExpenseCategory_02[heinä],tblExpenseCategory_03[heinä],tblExpenseCategory_04[heinä],tblExpenseCategory_05[heinä],tblExpenseCategory_06[heinä],tblExpenseCategory_07[heinä],tblExpenseCategory_08[heinä],tblExpenseCategory_09[heinä],tblExpenseCategory_10[heinä],tblExpenseCategory_11[heinä],tblExpenseCategory_12[heinä],tblExpenseCategory_13[heinä],tblExpenseCategory_14[heinä],tblExpenseCategory_15[heinä]) -> 5743 | J7: =SUM(tblExpenseCategory_01[elo],tblExpenseCategory_02[elo],tblExpenseCategory_03[elo],tblExpenseCategory_04[elo],tblExpenseCategory_05[elo],tblExpenseCategory_06[elo],tblExpenseCategory_07[elo],tblExpenseCategory_08[elo],tblExpenseCategory_09[elo],tblExpenseCategory_10[elo],tblExpenseCategory_11[elo],tblExpenseCategory_12[elo],tblExpenseCategory_13[elo],tblExpenseCategory_14[elo],tblExpenseCategory_15[elo]) -> 5353 | K7: =SUM(tblExpenseCategory_01[syys],tblExpenseCategory_02[syys],tblExpenseCategory_03[syys],tblExpenseCategory_04[syys],tblExpenseCategory_05[syys],tblExpenseCategory_06[syys],tblExpenseCategory_07[syys],tblExpenseCategory_08[syys],tblExpenseCategory_09[syys],tblExpenseCategory_10[syys],tblExpenseCategory_11[syys],tblExpenseCategory_12[syys],tblExpenseCategory_13[syys],tblExpenseCategory_14[syys],tblExpenseCategory_15[syys]) -> 5983 | L7: =SUM(tblExpenseCategory_01[loka],tblExpenseCategory_02[loka],tblExpenseCategory_03[loka],tblExpenseCategory_04[loka],tblExpenseCategory_05[loka],tblExpenseCategory_06[loka],tblExpenseCategory_07[loka],tblExpenseCategory_08[loka],tblExpenseCategory_09[loka],tblExpenseCategory_10[loka],tblExpenseCategory_11[loka],tblExpenseCategory_12[loka],tblExpenseCategory_13[loka],tblExpenseCategory_14[loka],tblExpenseCategory_15[loka]) -> 5943 | M7: =SUM(tblExpenseCategory_01[marras],tblExpenseCategory_02[marras],tblExpenseCategory_03[marras],tblExpenseCategory_04[marras],tblExpenseCategory_05[marras],tblExpenseCategory_06[marras],tblExpenseCategory_07[marras],tblExpenseCategory_08[marras],tblExpenseCategory_09[marras],tblExpenseCategory_10[marras],tblExpenseCategory_11[marras],tblExpenseCategory_12[marras],tblExpenseCategory_13[marras],tblExpenseCategory_14[marras],tblExpenseCategory_15[marras]) -> 5058 | N7: =SUM(tblExpenseCategory_01[joulu],tblExpenseCategory_02[joulu],tblExpenseCategory_03[joulu],tblExpenseCategory_04[joulu],tblExpenseCategory_05[joulu],tblExpenseCategory_06[joulu],tblExpenseCategory_07[joulu],tblExpenseCategory_08[joulu],tblExpenseCategory_09[joulu],tblExpenseCategory_10[joulu],tblExpenseCategory_11[joulu],tblExpenseCategory_12[joulu],tblExpenseCategory_13[joulu],tblExpenseCategory_14[joulu],tblExpenseCategory_15[joulu]) -> 4958 | O7: =SUM(tblExpenseCategory_01[vuosi],tblExpenseCategory_02[vuosi],tblExpenseCategory_03[vuosi],tblExpenseCategory_04[vuosi],tblExpenseCategory_05[vuosi],tblExpenseCategory_06[vuosi],tblExpenseCategory_07[vuosi],tblExpenseCategory_08[vuosi],tblExpenseCategory_09[vuosi],tblExpenseCategory_10[vuosi],tblExpenseCategory_11[vuosi],tblExpenseCategory_12[vuosi],tblExpenseCategory_13[vuosi],tblExpenseCategory_14[vuosi],tblExpenseCategory_15[vuosi]) -> 68594 | P7: =O7/12 -> 5716
B8: Nettotulot | C8: =C6-C7 -> -3714 | D8: =D6-D7 -> 3790 | E8: -1933 | F8: -1813 | G8: 3532 | H8: -3593 | I8: -4243 | J8: 1147 | K8: -1983 | L8: -1943 | M8: 3942 | N8: -958 | O8: -7769 | P8: =O8/12 -> -647
B9: KASSAVIRTA YHTEENSÄ | C9: =C5+C6-C7 -> -2714 | D9: =C9+D6-D7 -> 1076 | E9: =D9+E6-E7 -> -857 | F9: -2670 | G9: 862 | H9: -2731 | I9: -6974 | J9: -5827 | K9: -7810 | L9: -9753 | M9: -5811 | N9: -6769
B12: tulot
B13: Palkat | C13: 4000 | D13: 4000 | E13: 4000 | F13: 4000 | G13: 4000 | H13: 1000 | I13: 1000 | J13: 1000 | K13: 4000 | L13: 4000 | M13: 4000 | N13: 4000 | O13: =SUM(tblIncome[[#This Row],[tammi]:[joulu]]) -> 39000 | P13: =tblIncome[[#This Row],[vuosi]]/12 -> 3250
B14: Korkotulot | C14: 222 | D14: 33 | F14: 45 | H14: 25 | O14: =SUM(tblIncome[[#This Row],[tammi]:[joulu]]) -> 325 | P14: =tblIncome[[#This Row],[vuosi]]/12 -> 27
B15: Osingot | D15: 5000 | G15: 5000 | J15: 5000 | M15: 5000 | O15: =SUM(tblIncome[[#This Row],[tammi]:[joulu]]) -> 20000 | P15: =tblIncome[[#This Row],[vuosi]]/12 -> 1667
B16: Palautukset/korvaukset | H16: 500 | I16: 500 | J16: 500 | O16: =SUM(tblIncome[[#This Row],[tammi]:[joulu]]) -> 1500 | P16: =tblIncome[[#This Row],[vuosi]]/12 -> 125
B17: Muut | O17: =SUM(tblIncome[[#This Row],[tammi]:[joulu]]) -> 0 | P17: =tblIncome[[#This Row],[vuosi]]/12 -> 0
B18: =UPPER(B12&" Yhteensä ") -> TULOT YHTEENSÄ | C18: =SUM(tblIncome[tammi]) -> 4222 | D18: =SUM(tblIncome[helmi]) -> 9033 | E18: =SUM(tblIncome[maalis]) -> 4000 | F18: =SUM(tblIncome[huhti]) -> 4045 | G18: =SUM(tblIncome[touko]) -> 9000 | H18: =SUM(tblIncome[kesä]) -> 1525 | I18: =SUM(tblIncome[heinä]) -> 1500 | J18: =SUM(tblIncome[elo]) -> 6500 | K18: =SUM(tblIncome[syys]) -> 4000 | L18: =SUM(tblIncome[loka]) -> 4000 | M18: =SUM(tblIncome[marras]) -> 9000 | N18: =SUM(tblIncome[joulu]) -> 4000 | O18: =SUM(tblIncome[vuosi]) -> 60825 | P18: =tblIncome[[#Totals],[vuosi]]/12 -> 5069
B21: koti
B22: Asuntolaina/vuokra | C22: 850 | D22: 850 | E22: 850 | F22: 850 | G22: 850 | H22: 850 | I22: 850 | J22: 850 | K22: 850 | L22: 850 | M22: 900 | N22: 900 | O22: =SUM(tblExpenseCategory_01[[#This Row],[tammi]:[joulu]]) -> 10300 | P22: =tblExpenseCategory_01[[#This Row],[vuosi]]/12 -> 858
B23: Sähkö | C23: 200 | D23: 200 | E23: 175 | F23: 150 | G23: 150 | H23: 175 | I23: 225 | J23: 275 | K23: 200 | L23: 150 | M23: 150 | N23: 150 | O23: =SUM(tblExpenseCategory_01[[#This Row],[tammi]:[joulu]]) -> 2200 | P23: =tblExpenseCategory_01[[#This Row],[vuosi]]/12 -> 183
B24: Puhelin | C24: 50 | D24: 50 | E24: 100 | F24: 100 | G24: 50 | H24: 50 | I24: 100 | J24: 100 | K24: 50 | L24: 50 | M24: 50 | N24: 50 | O24: =SUM(tblExpenseCategory_01[[#This Row],[tammi]:[joulu]]) -> 800 | P24: =tblExpenseCategory_01[[#This Row],[vuosi]]/12 -> 67
B25: Kaapeli/satelliitti | C25: 69 | D25: 69 | E25: 69 | F25: 69 | G25: 69 | H25: 69 | I25: 69 | J25: 69 | K25: 69 | L25: 69 | M25: 69 | N25: 69 | O25: =SUM(tblExpenseCategory_01[[#This Row],[tammi]:[joulu]]) -> 828 | P25: =tblExpenseCategory_01[[#This Row],[vuosi]]/12 -> 69
B26: Internet | C26: 39 | D26: 39 | E26: 39 | F26: 39 | G26: 39 | H26: 39 | I26: 39 | J26: 39 | K26: 39 | L26: 39 | M26: 39 | N26: 39 | O26: =SUM(tblExpenseCategory_01[[#This Row],[tammi]:[joulu]]) -> 468 | P26: =tblExpenseCategory_01[[#This Row],[vuosi]]/12 -> 39
B27: =UPPER(B21&" Yhteensä ") -> KOTI YHTEENSÄ | C27: =SUM(tblExpenseCategory_01[tammi]) -> 1208 | D27: =SUM(tblExpenseCategory_01[helmi]) -> 1208 | E27: =SUM(tblExpenseCategory_01[maalis]) -> 1233 | F27: =SUM(tblExpenseCategory_01[huhti]) -> 1208 | G27: =SUM(tblExpenseCategory_01[touko]) -> 1158 | H27: =SUM(tblExpenseCategory_01[kesä]) -> 1183 | I27: =SUM(tblExpenseCategory_01[heinä]) -> 1283 | J27: =SUM(tblExpenseCategory_01[elo]) -> 1333 | K27: =SUM(tblExpenseCategory_01[syys]) -> 1208 | L27: =SUM(tblExpenseCategory_01[loka]) -> 1158 | M27: =SUM(tblExpenseCategory_01[marras]) -> 1208 | N27: =SUM(tblExpenseCategory_01[joulu]) -> 1208 | O27: =SUM(tblExpenseCategory_01[vuosi]) -> 14596 | P27: =tblExpenseCategory_01[[#Totals],[vuosi]]/12 -> 1216
B30: päivittäiset elinkustannukset
B31: Ruokaostokset | C31: 345 | D31: 250 | E31: 200 | F31: 400 | G31: 350 | H31: 250 | I31: 400 | J31: 350 | K31: 250 | L31: 400 | M31: 350 | N31: 250 | O31: =SUM(tblExpenseCategory_02[[#This Row],[tammi]:[joulu]]) -> 3795 | P31: =tblExpenseCategory_02[[#This Row],[vuosi]]/12 -> 316
B32: Vaatteet | C32: 300 | F32: 300 | I32: 300 | L32: 300 | O32: =SUM(tblExpenseCategory_02[[#This Row],[tammi]:[joulu]]) -> 1200 | P32: =tblExpenseCategory_02[[#This Row],[vuosi]]/12 -> 100
B33: Ravintolakulut | C33: 125 | D33: 125 | E33: 300 | F33: 125 | G33: 125 | H33: 200 | I33: 125 | J33: 125 | K33: 125 | L33: 125 | M33: 125 | N33: 125 | O33: =SUM(tblExpenseCategory_02[[#This Row],[tammi]:[joulu]]) -> 1750 | P33: =tblExpenseCategory_02[[#This Row],[vuosi]]/12 -> 146
B34: kampaamo/parturi | C34: 25 | E34: 50 | G34: 25 | I34: 50 | K34: 25 | M34: 100 | O34: =SUM(tblExpenseCategory_02[[#This Row],[tammi]:[joulu]]) -> 275 | P34: =tblExpenseCategory_02[[#This Row],[vuosi]]/12 -> 23
B35: Muut | O35: =SUM(tblExpenseCategory_02[[#This Row],[tammi]:[joulu]]) -> 0 | P35: =tblExpenseCategory_02[[#This Row],[vuosi]]/12 -> 0
B36: =UPPER(B30&" Yhteensä ") -> PÄIVITTÄISET ELINKUSTANNUKSET YHTEENSÄ | C36: =SUM(tblExpenseCategory_02[tammi]) -> 795 | D36: =SUM(tblExpenseCategory_02[helmi]) -> 375 | E36: =SUM(tblExpenseCategory_02[maalis]) -> 550 | F36: =SUM(tblExpenseCategory_02[huhti]) -> 825 | G36: =SUM(tblExpenseCategory_02[touko]) -> 500 | H36: =SUM(tblExpenseCategory_02[kesä]) -> 450 | I36: =SUM(tblExpenseCategory_02[heinä]) -> 875 | J36: =SUM(tblExpenseCategory_02[elo]) -> 475 | K36: =SUM(tblExpenseCategory_02[syys]) -> 400 | L36: =SUM(tblExpenseCategory_02[loka]) -> 825 | M36: =SUM(tblExpenseCategory_02[marras]) -> 575 | N36: =SUM(tblExpenseCategory_02[joulu]) -> 375 | O36: =SUM(tblExpenseCategory_02[vuosi]) -> 7020 | P36: =tblExpenseCategory_02[[#Totals],[vuosi]]/12 -> 585
B39: lapset
B40: Koulutarvikkeet | C40: 123 | E40: 100 | J40: 345 | O40: =SUM(tblExpenseCategory_03[[#This Row],[tammi]:[joulu]]) -> 568 | P40: =tblExpenseCategory_03[[#This Row],[vuosi]]/12 -> 47
B41: Vaatteet | D41: 100 | G41: 100 | K41: 100 | N41: 100 | O41: =SUM(tblExpenseCategory_03[[#This Row],[tammi]:[joulu]]) -> 400 | P41: =tblExpenseCategory_03[[#This Row],[vuosi]]/12 -> 33
B42: Lemmikit | C42: 50 | D42: 50 | E42: 50 | F42: 50 | G42: 50 | H42: 50 | K42: 50 | L42: 50 | M42: 50 | N42: 50 | O42: =SUM(tblExpenseCategory_03[[#This Row],[tammi]:[joulu]]) -> 500 | P42: =tblExpenseCategory_03[[#This Row],[vuosi]]/12 -> 42
B43: Vakuutukset | C43: 200 | D43: 200 | E43: 200 | F43: 200 | G43: 200 | H43: 200 | I43: 200 | J43: 200 | K43: 200 | L43: 200 | M43: 200 | N43: 200 | O43: =SUM(tblExpenseCategory_03[[#This Row],[tammi]:[joulu]]) -> 2400 | P43: =tblExpenseCategory_03[[#This Row],[vuosi]]/12 -> 200
B44: Muut | C44: 2000 | D44: 150 | H44: 200 | L44: 100 | O44: =SUM(tblExpenseCategory_03[[#This Row],[tammi]:[joulu]]) -> 2450 | P44: =tblExpenseCategory_03[[#This Row],[vuosi]]/12 -> 204
B45: =UPPER(B39&" Yhteensä ") -> LAPSET YHTEENSÄ | C45: =SUM(tblExpenseCategory_03[tammi]) -> 2373 | D45: =SUM(tblExpenseCategory_03[helmi]) -> 500 | E45: =SUM(tblExpenseCategory_03[maalis]) -> 350 | F45: =SUM(tblExpenseCategory_03[huhti]) -> 250 | G45: =SUM(tblExpenseCategory_03[touko]) -> 350 | H45: =SUM(tblExpenseCategory_03[kesä]) -> 450 | I45: =SUM(tblExpenseCategory_03[heinä]) -> 200 | J45: =SUM(tblExpenseCategory_03[elo]) -> 545 | K45: =SUM(tblExpenseCategory_03[syys]) -> 350 | L45: =SUM(tblExpenseCategory_03[loka]) -> 350 | M45: =SUM(tblExpenseCategory_03[marras]) -> 250 | N45: =SUM(tblExpenseCategory_03[joulu]) -> 350 | O45: =SUM(tblExpenseCategory_03[vuosi]) -> 6318 | P45: =tblExpenseCategory_03[[#Totals],[vuosi]]/12 -> 527
B48: kuljetus
B49: Ajoneuvomaksut | C49: 600 | D49: 600 | E49: 600 | F49: 600 | G49: 600 | H49: 600 | I49: 600 | J49: 600 | K49: 600 | L49: 600 | M49: 600 | N49: 600 | O49: =SUM(tblExpenseCategory_04[[#This Row],[tammi]:[joulu]]) -> 7200 | P49: =tblExpenseCategory_04[[#This Row],[vuosi]]/12 -> 600
B50: Polttoaine | C50: 325 | D50: 325 | E50: 325 | F50: 325 | G50: 325 | H50: 500 | I50: 500 | J50: 500 | K50: 325 | L50: 325 | M50: 325 | N50: 325 | O50: =SUM(tblExpenseCategory_04[[#This Row],[tammi]:[joulu]]) -> 4425 | P50: =tblExpenseCategory_04[[#This Row],[vuosi]]/12 -> 369
B51: Korjaustyöt | D51: 100 | F51: 100 | H51: 100 | J51: 100 | L51: 100 | O51: =SUM(tblExpenseCategory_04[[#This Row],[tammi]:[joulu]]) -> 500 | P51: =tblExpenseCategory_04[[#This Row],[vuosi]]/12 -> 42
B52: Rekisteröinti-/lisenssimaksut | C52: 185 | K52: 225 | O52: =SUM(tblExpenseCategory_04[[#This Row],[tammi]:[joulu]]) -> 410 | P52: =tblExpenseCategory_04[[#This Row],[vuosi]]/12 -> 34
B53: Muut | G53: 400 | O53: =SUM(tblExpenseCategory_04[[#This Row],[tammi]:[joulu]]) -> 400 | P53: =tblExpenseCategory_04[[#This Row],[vuosi]]/12 -> 33
B54: =UPPER(B48&" Yhteensä ") -> KULJETUS YHTEENSÄ | C54: =SUM(tblExpenseCategory_04[tammi]) -> 1110 | D54: =SUM(tblExpenseCategory_04[helmi]) -> 1025 | E54: =SUM(tblExpenseCategory_04[maalis]) -> 925 | F54: =SUM(tblExpenseCategory_04[huhti]) -> 1025 | G54: =SUM(tblExpenseCategory_04[touko]) -> 1325 | H54: =SUM(tblExpenseCategory_04[kesä]) -> 1200 | I54: =SUM(tblExpenseCategory_04[heinä]) -> 1100 | J54: =SUM(tblExpenseCategory_04[elo]) -> 1200 | K54: =SUM(tblExpenseCategory_04[syys]) -> 1150 | L54: =SUM(tblExpenseCategory_04[loka]) -> 1025 | M54: =SUM(tblExpenseCategory_04[marras]) -> 925 | N54: =SUM(tblExpenseCategory_04[joulu]) -> 925 | O54: =SUM(tblExpenseCategory_04[vuosi]) -> 12935 | P54: =tblExpenseCategory_04[[#Totals],[vuosi]]/12 -> 1078
B57: terveys
B58: Lääkäri/hammaslääkäri | D58: 35 | G58: 35 | H58: 35 | I58: 35 | L58: 35 | O58: =SUM(tblExpenseCategory_05[[#This Row],[tammi]:[joulu]]) -> 175 | P58: =tblExpenseCategory_05[[#This Row],[vuosi]]/12 -> 15
B59: Lääkkeet | C59: 25 | D59: 25 | E59: 25 | F59: 25 | G59: 25 | H59: 25 | I59: 25 | J59: 25 | K59: 25 | L59: 25 | M59: 25 | N59: 25 | O59: =SUM(tblExpenseCategory_05[[#This Row],[tammi]:[joulu]]) -> 300 | P59: =tblExpenseCategory_05[[#This Row],[vuosi]]/12 -> 25
B60: Muut | E60: 150 | K60: 150 | O60: =SUM(tblExpenseCategory_05[[#This Row],[tammi]:[joulu]]) -> 300 | P60: =tblExpenseCategory_05[[#This Row],[vuosi]]/12 -> 25
B61: =UPPER(B57&" Yhteensä ") -> TERVEYS YHTEENSÄ | C61: =SUM(tblExpenseCategory_05[tammi]) -> 25 | D61: =SUM(tblExpenseCategory_05[helmi]) -> 60 | E61: =SUM(tblExpenseCategory_05[maalis]) -> 175 | F61: =SUM(tblExpenseCategory_05[huhti]) -> 25 | G61: =SUM(tblExpenseCategory_05[touko]) -> 60 | H61: =SUM(tblExpenseCategory_05[kesä]) -> 60 | I61: =SUM(tblExpenseCategory_05[heinä]) -> 60 | J61: =SUM(tblExpenseCategory_05[elo]) -> 25 | K61: =SUM(tblExpenseCategory_05[syys]) -> 175 | L61: =SUM(tblExpenseCategory_05[loka]) -> 60 | M61: =SUM(tblExpenseCategory_05[marras]) -> 25 | N61: =SUM(tblExpenseCategory_05[joulu]) -> 25 | O61: =SUM(tblExpenseCategory_05[vuosi]) -> 775 | P61: =tblExpenseCategory_05[[#Totals],[vuosi]]/12 -> 65
B64: vakuutus
B65: Auto | C65: 150 | D65: 150 | E65: 150 | F65: 150 | G65: 150 | H65: 150 | I65: 150 | J65: 150 | K65: 150 | L65: 150 | M65: 150 | N65: 150 | O65: =SUM(tblExpenseCategory_06[[#This Row],[tammi]:[joulu]]) -> 1800 | P65: =tblExpenseCategory_06[[#This Row],[vuosi]]/12 -> 150
B66: Vapaa-ajan vakuutus | C66: 675 | D66: 675 | E66: 675 | F66: 675 | G66: 675 | H66: 675 | I66: 675 | J66: 675 | K66: 675 | L66: 675 | M66: 675 | N66: 675 | O66: =SUM(tblExpenseCategory_06[[#This Row],[tammi]:[joulu]]) -> 8100 | P66: =tblExpenseCategory_06[[#This Row],[vuosi]]/12 -> 675
B67: Henkivakuutus | C67: 150 | D67: 150 | E67: 150 | F67: 150 | G67: 150 | H67: 150 | I67: 150 | J67: 150 | K67: 150 | L67: 150 | M67: 150 | N67: 150 | O67: =SUM(tblExpenseCategory_06[[#This Row],[tammi]:[joulu]]) -> 1800 | P67: =tblExpenseCategory_06[[#This Row],[vuosi]]/12 -> 150
B68: =UPPER(B64&" Yhteensä ") -> VAKUUTUS YHTEENSÄ | C68: =SUM(tblExpenseCategory_06[tammi]) -> 975 | D68: =SUM(tblExpenseCategory_06[helmi]) -> 975 | E68: =SUM(tblExpenseCategory_06[maalis]) -> 975 | F68: =SUM(tblExpenseCategory_06[huhti]) -> 975 | G68: =SUM(tblExpenseCategory_06[touko]) -> 975 | H68: =SUM(tblExpenseCategory_06[kesä]) -> 975 | I68: =SUM(tblExpenseCategory_06[heinä]) -> 975 | J68: =SUM(tblExpenseCategory_06[elo]) -> 975 | K68: =SUM(tblExpenseCategory_06[syys]) -> 975 | L68: =SUM(tblExpenseCategory_06[loka]) -> 975 | M68: =SUM(tblExpenseCategory_06[marras]) -> 975 | N68: =SUM(tblExpenseCategory_06[joulu]) -> 975 | O68: =SUM(tblExpenseCategory_06[vuosi]) -> 11700 | P68: =tblExpenseCategory_06[[#Totals],[vuosi]]/12 -> 975
B71: koulutus
B72: Lukukausimaksu | E72: 400 | K72: 400 | O72: =SUM(tblExpenseCategory_07[[#This Row],[tammi]:[joulu]]) -> 800 | P72: =tblExpenseCategory_07[[#This Row],[vuosi]]/12 -> 67
B73: Kirjat | E73: 225 | K73: 225 | O73: =SUM(tblExpenseCategory_07[[#This Row],[tammi]:[joulu]]) -> 450 | P73: =tblExpenseCategory_07[[#This Row],[vuosi]]/12 -> 38
B74: Muut | O74: =SUM(tblExpenseCategory_07[[#This Row],[tammi]:[joulu]]) -> 0 | P74: =tblExpenseCategory_07[[#This Row],[vuosi]]/12 -> 0
B75: =UPPER(B71&" Yhteensä ") -> KOULUTUS YHTEENSÄ | C75: =SUM(tblExpenseCategory_07[tammi]) -> 0 | D75: =SUM(tblExpenseCategory_07[helmi]) -> 0 | E75: =SUM(tblExpenseCategory_07[maalis]) -> 625 | F75: =SUM(tblExpenseCategory_07[huhti]) -> 0 | G75: =SUM(tblExpenseCategory_07[touko]) -> 0 | H75: =SUM(tblExpenseCategory_07[kesä]) -> 0 | I75: =SUM(tblExpenseCategory_07[heinä]) -> 0 | J75: =SUM(tblExpenseCategory_07[elo]) -> 0 | K75: =SUM(tblExpenseCategory_07[syys]) -> 625 | L75: =SUM(tblExpenseCategory_07[loka]) -> 0 | M75: =SUM(tblExpenseCategory_07[marras]) -> 0 | N75: =SUM(tblExpenseCategory_07[joulu]) -> 0 | O75: =SUM(tblExpenseCategory_07[vuosi]) -> 1250 | P75: =tblExpenseCategory_07[[#Totals],[vuosi]]/12 -> 104
B78: hyväntekeväisyys
B79: Lahjat | D79: 100 | H79: 100 | L79: 100 | O79: =SUM(tblExpenseCategory_08[[#This Row],[tammi]:[joulu]]) -> 300 | P79: =tblExpenseCategory_08[[#This Row],[vuosi]]/12 -> 25
B80: Lahjoitukset hyväntekeväisyyteen | E80: 100 | G80: 100 | I80: 100 | K80: 100 | M80: 100 | O80: =SUM(tblExpenseCategory_08[[#This Row],[tammi]:[joulu]]) -> 500 | P80: =tblExpenseCategory_08[[#This Row],[vuosi]]/12 -> 42
B81: Muut | F81: 100 | J81: 100 | N81: 100 | O81: =SUM(tblExpenseCategory_08[[#This Row],[tammi]:[joulu]]) -> 300 | P81: =tblExpenseCategory_08[[#This Row],[vuosi]]/12 -> 25
B82: =UPPER(B78&" Yhteensä ") -> HYVÄNTEKEVÄISYYS YHTEENSÄ | C82: =SUM(tblExpenseCategory_08[tammi]) -> 0 | D82: =SUM(tblExpenseCategory_08[helmi]) -> 100 | E82: =SUM(tblExpenseCategory_08[maalis]) -> 100 | F82: =SUM(tblExpenseCategory_08[huhti]) -> 100 | G82: =SUM(tblExpenseCategory_08[touko]) -> 100 | H82: =SUM(tblExpenseCategory_08[kesä]) -> 100 | I82: =SUM(tblExpenseCategory_08[heinä]) -> 100 | J82: =SUM(tblExpenseCategory_08[elo]) -> 100 | K82: =SUM(tblExpenseCategory_08[syys]) -> 100 | L82: =SUM(tblExpenseCategory_08[loka]) -> 100 | M82: =SUM(tblExpenseCategory_08[marras]) -> 100 | N82: =SUM(tblExpenseCategory_08[joulu]) -> 100 | O82: =SUM(tblExpenseCategory_08[vuosi]) -> 1100 | P82: =tblExpenseCategory_08[[#Totals],[vuosi]]/12 -> 92
B85: säästöt
B86: Hätärahasto | C86: 100 | D86: 100 | E86: 100 | F86: 100 | G86: 100 | K86: 100 | L86: 100 | M86: 100 | N86: 100 | O86: =SUM(tblExpenseCategory_09[[#This Row],[tammi]:[joulu]]) -> 900 | P86: =tblExpenseCategory_09[[#This Row],[vuosi]]/12 -> 75
B87: Eläke | C87: 500 | D87: 500 | E87: 500 | F87: 500 | G87: 500 | H87: 500 | I87: 500 | J87: 500 | K87: 500 | L87: 500 | M87: 500 | N87: 500 | O87: =SUM(tblExpenseCategory_09[[#This Row],[tammi]:[joulu]]) -> 6000 | P87: =tblExpenseCategory_09[[#This Row],[vuosi]]/12 -> 500
B88: Talletusten siirto | C88: 200 | D88: 200 | E88: 200 | F88: 200 | G88: 200 | K88: 200 | L88: 200 | M88: 200 | N88: 200 | O88: =SUM(tblExpenseCategory_09[[#This Row],[tammi]:[joulu]]) -> 1800 | P88: =tblExpenseCategory_09[[#This Row],[vuosi]]/12 -> 150
B89: =UPPER(B85&" Yhteensä ") -> SÄÄSTÖT YHTEENSÄ | C89: =SUM(tblExpenseCategory_09[tammi]) -> 800 | D89: =SUM(tblExpenseCategory_09[helmi]) -> 800 | E89: =SUM(tblExpenseCategory_09[maalis]) -> 800 | F89: =SUM(tblExpenseCategory_09[huhti]) -> 800 | G89: =SUM(tblExpenseCategory_09[touko]) -> 800 | H89: =SUM(tblExpenseCategory_09[kesä]) -> 500 | I89: =SUM(tblExpenseCategory_09[heinä]) -> 500 | J89: =SUM(tblExpenseCategory_09[elo]) -> 500 | K89: =SUM(tblExpenseCategory_09[syys]) -> 800 | L89: =SUM(tblExpenseCategory_09[loka]) -> 800 | M89: =SUM(tblExpenseCategory_09[marras]) -> 800 | N89: =SUM(tblExpenseCategory_09[joulu]) -> 800 | O89: =SUM(tblExpenseCategory_09[vuosi]) -> 8700 | P89: =tblExpenseCategory_09[[#Totals],[vuosi]]/12 -> 725
B92: pakolliset maksut
B93: Luottokortti #1 | C93: 145 | D93: 145 | E93: 145 | F93: 145 | G93: 145 | H93: 145 | I93: 145 | J93: 145 | K93: 145 | L93: 145 | M93: 145 | N93: 145 | O93: =SUM(tblExpenseCategory_10[[#This Row],[tammi]:[joulu]]) -> 1740 | P93: =tblExpenseCategory_10[[#This Row],[vuosi]]/12 -> 145
B94: Yhteisövero | C94: 450 | F94: 450 | I94: 450 | L94: 450 | O94: =SUM(tblExpenseCategory_10[[#This Row],[tammi]:[joulu]]) -> 1800 | P94: =tblExpenseCategory_10[[#This Row],[vuosi]]/12 -> 150
B95: Opintolaina | C95: 55 | D95: 55 | E95: 55 | F95: 55 | G95: 55 | H95: 55 | I95: 55 | J95: 55 | K95: 55 | L95: 55 | M95: 55 | N95: 55 | O95: =SUM(tblExpenseCategory_10[[#This Row],[tammi]:[joulu]]) -> 660 | P95: =tblExpenseCategory_10[[#This Row],[vuosi]]/12 -> 55
B96: =UPPER(B92&" Yhteensä ") -> PAKOLLISET MAKSUT YHTEENSÄ | C96: =SUM(tblExpenseCategory_10[tammi]) -> 650 | D96: =SUM(tblExpenseCategory_10[helmi]) -> 200 | E96: =SUM(tblExpenseCategory_10[maalis]) -> 200 | F96: =SUM(tblExpenseCategory_10[huhti]) -> 650 | G96: =SUM(tblExpenseCategory_10[touko]) -> 200 | H96: =SUM(tblExpenseCategory_10[kesä]) -> 200 | I96: =SUM(tblExpenseCategory_10[heinä]) -> 650 | J96: =SUM(tblExpenseCategory_10[elo]) -> 200 | K96: =SUM(tblExpenseCategory_10[syys]) -> 200 | L96: =SUM(tblExpenseCategory_10[loka]) -> 650 | M96: =SUM(tblExpenseCategory_10[marras]) -> 200 | N96: =SUM(tblExpenseCategory_10[joulu]) -> 200 | O96: =SUM(tblExpenseCategory_10[vuosi]) -> 4200 | P96: =tblExpenseCategory_10[[#Totals],[vuosi]]/12 -> 350
O100: =SUM(tblExpenseCategory_11[[#This Row],[tammi]:[joulu]]) -> 0 | P100: =tblExpenseCategory_11[[#This Row],[vuosi]]/12 -> 0
O101: =SUM(tblExpenseCategory_11[[#This Row],[tammi]:[joulu]]) -> 0 | P101: =tblExpenseCategory_11[[#This Row],[vuosi]]/12 -> 0
O102: =SUM(tblExpenseCategory_11[[#This Row],[tammi]:[joulu]]) -> 0 | P102: =tblExpenseCategory_11[[#This Row],[vuosi]]/12 -> 0
B103: =UPPER(B99&" Yhteensä ") -> YHTEENSÄ | C103: =SUM(tblExpenseCategory_11[tammi]) -> 0 | D103: =SUM(tblExpenseCategory_11[helmi]) -> 0 | E103: =SUM(tblExpenseCategory_11[maalis]) -> 0 | F103: =SUM(tblExpenseCategory_11[huhti]) -> 0 | G103: =SUM(tblExpenseCategory_11[touko]) -> 0 | H103: =SUM(tblExpenseCategory_11[kesä]) -> 0 | I103: =SUM(tblExpenseCategory_11[heinä]) -> 0 | J103: =SUM(tblExpenseCategory_11[elo]) -> 0 | K103: =SUM(tblExpenseCategory_11[syys]) -> 0 | L103: =SUM(tblExpenseCategory_11[loka]) -> 0 | M103: =SUM(tblExpenseCategory_11[marras]) -> 0 | N103: =SUM(tblExpenseCategory_11[joulu]) -> 0 | O103: =SUM(tblExpenseCategory_11[vuosi]) -> 0 | P103: =tblExpenseCategory_11[[#Totals],[vuosi]]/12 -> 0
O107: =SUM(tblExpenseCategory_12[[#This Row],[tammi]:[joulu]]) -> 0 | P107: =tblExpenseCategory_12[[#This Row],[vuosi]]/12 -> 0
O108: =SUM(tblExpenseCategory_12[[#This Row],[tammi]:[joulu]]) -> 0 | P108: =tblExpenseCategory_12[[#This Row],[vuosi]]/12 -> 0
O109: =SUM(tblExpenseCategory_12[[#This Row],[tammi]:[joulu]]) -> 0 | P109: =tblExpenseCategory_12[[#This Row],[vuosi]]/12 -> 0
B110: =UPPER(B106&" Yhteensä ") -> YHTEENSÄ | C110: =SUM(tblExpenseCategory_12[tammi]) -> 0 | D110: =SUM(tblExpenseCategory_12[helmi]) -> 0 | E110: =SUM(tblExpenseCategory_12[maalis]) -> 0 | F110: =SUM(tblExpenseCategory_12[huhti]) -> 0 | G110: =SUM(tblExpenseCategory_12[touko]) -> 0 | H110: =SUM(tblExpenseCategory_12[kesä]) -> 0 | I110: =SUM(tblExpenseCategory_12[heinä]) -> 0 | J110: =SUM(tblExpenseCategory_12[elo]) -> 0 | K110: =SUM(tblExpenseCategory_12[syys]) -> 0 | L110: =SUM(tblExpenseCategory_12[loka]) -> 0 | M110: =SUM(tblExpenseCategory_12[marras]) -> 0 | N110: =SUM(tblExpenseCategory_12[joulu]) -> 0 | O110: =SUM(tblExpenseCategory_12[vuosi]) -> 0 | P110: =tblExpenseCategory_12[[#Totals],[vuosi]]/12 -> 0
O114: =SUM(tblExpenseCategory_13[[#This Row],[tammi]:[joulu]]) -> 0 | P114: =tblExpenseCategory_13[[#This Row],[vuosi]]/12 -> 0
O115: =SUM(tblExpenseCategory_13[[#This Row],[tammi]:[joulu]]) -> 0 | P115: =tblExpenseCategory_13[[#This Row],[vuosi]]/12 -> 0
O116: =SUM(tblExpenseCategory_13[[#This Row],[tammi]:[joulu]]) -> 0 | P116: =tblExpenseCategory_13[[#This Row],[vuosi]]/12 -> 0
B117: =UPPER(B113&" Yhteensä ") -> YHTEENSÄ | C117: =SUM(tblExpenseCategory_13[tammi]) -> 0 | D117: =SUM(tblExpenseCategory_13[helmi]) -> 0 | E117: =SUM(tblExpenseCategory_13[maalis]) -> 0 | F117: =SUM(tblExpenseCategory_13[huhti]) -> 0 | G117: =SUM(tblExpenseCategory_13[touko]) -> 0 | H117: =SUM(tblExpenseCategory_13[kesä]) -> 0 | I117: =SUM(tblExpenseCategory_13[heinä]) -> 0 | J117: =SUM(tblExpenseCategory_13[elo]) -> 0 | K117: =SUM(tblExpenseCategory_13[syys]) -> 0 | L117: =SUM(tblExpenseCategory_13[loka]) -> 0 | M117: =SUM(tblExpenseCategory_13[marras]) -> 0 | N117: =SUM(tblExpenseCategory_13[joulu]) -> 0 | O117: =SUM(tblExpenseCategory_13[vuosi]) -> 0 | P117: =tblExpenseCategory_13[[#Totals],[vuosi]]/12 -> 0
O121: =SUM(tblExpenseCategory_14[[#This Row],[tammi]:[joulu]]) -> 0 | P121: =tblExpenseCategory_14[[#This Row],[vuosi]]/12 -> 0
O122: =SUM(tblExpenseCategory_14[[#This Row],[tammi]:[joulu]]) -> 0 | P122: =tblExpenseCategory_14[[#This Row],[vuosi]]/12 -> 0
O123: =SUM(tblExpenseCategory_14[[#This Row],[tammi]:[joulu]]) -> 0 | P123: =tblExpenseCategory_14[[#This Row],[vuosi]]/12 -> 0
B124: =UPPER(B120&" Yhteensä ") -> YHTEENSÄ | C124: =SUM(tblExpenseCategory_14[tammi]) -> 0 | D124: =SUM(tblExpenseCategory_14[helmi]) -> 0 | E124: =SUM(tblExpenseCategory_14[maalis]) -> 0 | F124: =SUM(tblExpenseCategory_14[huhti]) -> 0 | G124: =SUM(tblExpenseCategory_14[touko]) -> 0 | H124: =SUM(tblExpenseCategory_14[kesä]) -> 0 | I124: =SUM(tblExpenseCategory_14[heinä]) -> 0 | J124: =SUM(tblExpenseCategory_14[elo]) -> 0 | K124: =SUM(tblExpenseCategory_14[syys]) -> 0 | L124: =SUM(tblExpenseCategory_14[loka]) -> 0 | M124: =SUM(tblExpenseCategory_14[marras]) -> 0 | N124: =SUM(tblExpenseCategory_14[joulu]) -> 0 | O124: =SUM(tblExpenseCategory_14[vuosi]) -> 0 | P124: =tblExpenseCategory_14[[#Totals],[vuosi]]/12 -> 0
O128: =SUM(tblExpenseCategory_15[[#This Row],[tammi]:[joulu]]) -> 0 | P128: =tblExpenseCategory_15[[#This Row],[vuosi]]/12 -> 0
O129: =SUM(tblExpenseCategory_15[[#This Row],[tammi]:[joulu]]) -> 0 | P129: =tblExpenseCategory_15[[#This Row],[vuosi]]/12 -> 0
O130: =SUM(tblExpenseCategory_15[[#This Row],[tammi]:[joulu]]) -> 0 | P130: =tblExpenseCategory_15[[#This Row],[vuosi]]/12 -> 0
B131: =UPPER(B127&" Yhteensä ") -> YHTEENSÄ | C131: =SUM(tblExpenseCategory_15[tammi]) -> 0 | D131: =SUM(tblExpenseCategory_15[helmi]) -> 0 | E131: =SUM(tblExpenseCategory_15[maalis]) -> 0 | F131: =SUM(tblExpenseCategory_15[huhti]) -> 0 | G131: =SUM(tblExpenseCategory_15[touko]) -> 0 | H131: =SUM(tblExpenseCategory_15[kesä]) -> 0 | I131: =SUM(tblExpenseCategory_15[heinä]) -> 0 | J131: =SUM(tblExpenseCategory_15[elo]) -> 0 | K131: =SUM(tblExpenseCategory_15[syys]) -> 0 | L131: =SUM(tblExpenseCategory_15[loka]) -> 0 | M131: =SUM(tblExpenseCategory_15[marras]) -> 0 | N131: =SUM(tblExpenseCategory_15[joulu]) -> 0 | O131: =SUM(tblExpenseCategory_15[vuosi]) -> 0 | P131: =tblExpenseCategory_15[[#Totals],[vuosi]]/12 -> 0

Sheet Asetukset
B1: SARION PERHE 2012
B2: tulot | D2: kulut
B3: palkat & tipit
B4: korkotulot | D4: koti | F4: koti | H4: päivittäiset elinkustannukset | J4: lapset
B5: osingot | D5: päivittäiset elinkustannukset | F5: asuntolaina/vuokra | H5: elintarvikkeet | J5: lääkkeet
B6: vastaanotetut lahjat | D6: lapset | F6: sähkö | H6: henkilökohtaiset tarvikkeet | J6: vaatteet
B7: palautukset/korvaukset | D7: kuljetus | F7: kaasu/öljy | H7: vaatteet | J7: koulumaksut
B8: siirto talletuksista | D8: vapaa-aika | F8: vesi/viemäröinti/jätteet | H8: siivouspalvelut | J8: lemmikit
B9: muut | D9: vakuutus | F9: puhelin | H9: ravintolakulut | J9: koulutarvikkeet
D10: koulutus | F10: kaapeli/satelliitti | H10: pesula | J10: lastenhoito
D11: hyväntekeväisyys | F11: internet | H11: kampaamo/parturi | J11: lelut/pelit
D12: säästöt | F12: huonekalut/kodinkoneet | H12: muut | J12: muut
D13: pakolliset maksut | F13: piha/puutarha
D14: viihde | F14: kodin tarvikkeet
D15: lemmikit | F15: huolto
D16: tilaukset | F16: korjaustyöt
D17: loma | F17: muut
D18: muut
F20: kuljetus | H20: terveys | J20: vakuutus
F21: ajoneuvomaksut | H21: lääkäri/hammaslääkäri | J21: auto
F22: polttoaine | H22: lääkkeet | J22: terveys
F23: linja-auto-/taksi-/junamaksut | H23: kuntosalimaksut | J23: koti/vuokraus
F24: korjaukset | H24: hätävarat | J24: henkivakuutus
F25: rekisteröinti-/lisenssimaksut | H25: muut | J25: muut
F26: muut
F29: koulutus | H29: hyväntekeväisyys | J29: säästöt
F30: lukukausimaksut | H30: lahjat | J30: hätärahasto
F31: kirjat | H31: lahjoitukset hyväntekeväisyyteen | J31: siirto talletuksiin
F32: musiikkitunnit | H32: lahjoitukset kirkoille | J32: eläke
F33: muut | H33: muut | J33: sijoitukset
J34: rahasto
J35: muut
F38: pakolliset maksut | H38: viihde | J38: lemmikit
F39: opintolaina | H39: videot/DVD-levyt | J39: ruoka
F40: muu laina | H40: musiikki | J40: lääkkeet
F41: luottokortti #1 | H41: pelit | J41: lelut/tarvikkeet
F42: luottokortti #2 | H42: vuokraus | J42: muut
F43: luottokortti #3 | H43: elokuvat/teatteri
F44: elatusapu | H44: konsertit/näytelmät
F45: yhteisöverot | H45: kirjat
F46: kiinteistövero | H46: harrastukset
F47: valtion-/kunnallisvero | H47: elokuvat/valokuvaus
F48: taloyhtiön maksut | H48: urheilu
F49: oikeustoimiin liittyvät maksut | H49: ulkoilu
F50: muut | H50: lelut/laitteet
H51: muut
F53: tilaukset | H53: loma | J53: muut
F54: sanomalehdet | H54: matkustaminen | J54: pankkimaksut
F55: aikakausilehdet | H55: majoitus | J55: postimaksut
F56: maksut | H56: ruoka | J56: muut
F57: kerhojen jäsenmaksut | H57: auton vuokraus
F58: muut | H58: viihde
H59: muut

Sheet kaaviotiedot (hidden)
B1: *** Tämä laskentataulukko on pidettävä piilotettuna ***
B4: Kausi | C4: 3
C6: tammi | D6: helmi | E6: maalis | F6: huhti | G6: touko | H6: kesä | I6: heinä | J6: elo | K6: syys | L6: loka | M6: marras | N6: joulu | O6: vuosi | P6: Keskiarvo
B7: =LOWER(Budjetti!B127) ->  | C7: =SUM(tblExpenseCategory_15[tammi]) -> 0 | D7: =SUM(tblExpenseCategory_15[helmi]) -> 0 | E7: =SUM(tblExpenseCategory_15[maalis]) -> 0 | F7: =SUM(tblExpenseCategory_15[huhti]) -> 0 | G7: =SUM(tblExpenseCategory_15[touko]) -> 0 | H7: =SUM(tblExpenseCategory_15[kesä]) -> 0 | I7: =SUM(tblExpenseCategory_15[heinä]) -> 0 | J7: =SUM(tblExpenseCategory_15[elo]) -> 0 | K7: =SUM(tblExpenseCategory_15[syys]) -> 0 | L7: =SUM(tblExpenseCategory_15[loka]) -> 0 | M7: =SUM(tblExpenseCategory_15[marras]) -> 0 | N7: =SUM(tblExpenseCategory_15[joulu]) -> 0 | O7: =SUM(tblExpenseCategory_15[vuosi]) -> 0 | P7: =SUM(tblExpenseCategory_15[keskiarvo]) -> 0
B8: =LOWER(Budjetti!B120) ->  | C8: =SUM(tblExpenseCategory_14[tammi]) -> 0 | D8: =SUM(tblExpenseCategory_14[helmi]) -> 0 | E8: =SUM(tblExpenseCategory_14[maalis]) -> 0 | F8: =SUM(tblExpenseCategory_14[huhti]) -> 0 | G8: =SUM(tblExpenseCategory_14[touko]) -> 0 | H8: =SUM(tblExpenseCategory_14[kesä]) -> 0 | I8: =SUM(tblExpenseCategory_14[heinä]) -> 0 | J8: =SUM(tblExpenseCategory_14[elo]) -> 0 | K8: =SUM(tblExpenseCategory_14[syys]) -> 0 | L8: =SUM(tblExpenseCategory_14[loka]) -> 0 | M8: =SUM(tblExpenseCategory_14[marras]) -> 0 | N8: =SUM(tblExpenseCategory_14[joulu]) -> 0 | O8: =SUM(tblExpenseCategory_14[vuosi]) -> 0 | P8: =SUM(tblExpenseCategory_14[keskiarvo]) -> 0
B9: =LOWER(Budjetti!B113) ->  | C9: =SUM(tblExpenseCategory_13[tammi]) -> 0 | D9: =SUM(tblExpenseCategory_13[helmi]) -> 0 | E9: =SUM(tblExpenseCategory_13[maalis]) -> 0 | F9: =SUM(tblExpenseCategory_13[huhti]) -> 0 | G9: =SUM(tblExpenseCategory_13[touko]) -> 0 | H9: =SUM(tblExpenseCategory_13[kesä]) -> 0 | I9: =SUM(tblExpenseCategory_13[heinä]) -> 0 | J9: =SUM(tblExpenseCategory_13[elo]) -> 0 | K9: =SUM(tblExpenseCategory_13[syys]) -> 0 | L9: =SUM(tblExpenseCategory_13[loka]) -> 0 | M9: =SUM(tblExpenseCategory_13[marras]) -> 0 | N9: =SUM(tblExpenseCategory_13[joulu]) -> 0 | O9: =SUM(tblExpenseCategory_13[vuosi]) -> 0 | P9: =SUM(tblExpenseCategory_13[keskiarvo]) -> 0
B10: =LOWER(Budjetti!B106) ->  | C10: =SUM(tblExpenseCategory_12[tammi]) -> 0 | D10: =SUM(tblExpenseCategory_12[helmi]) -> 0 | E10: =SUM(tblExpenseCategory_12[maalis]) -> 0 | F10: =SUM(tblExpenseCategory_12[huhti]) -> 0 | G10: =SUM(tblExpenseCategory_12[touko]) -> 0 | H10: =SUM(tblExpenseCategory_12[kesä]) -> 0 | I10: =SUM(tblExpenseCategory_12[heinä]) -> 0 | J10: =SUM(tblExpenseCategory_12[elo]) -> 0 | K10: =SUM(tblExpenseCategory_12[syys]) -> 0 | L10: =SUM(tblExpenseCategory_12[loka]) -> 0 | M10: =SUM(tblExpenseCategory_12[marras]) -> 0 | N10: =SUM(tblExpenseCategory_12[joulu]) -> 0 | O10: =SUM(tblExpenseCategory_12[vuosi]) -> 0 | P10: =SUM(tblExpenseCategory_12[keskiarvo]) -> 0
B11: =LOWER(Budjetti!B99) ->  | C11: =SUM(tblExpenseCategory_11[tammi]) -> 0 | D11: =SUM(tblExpenseCategory_11[helmi]) -> 0 | E11: =SUM(tblExpenseCategory_11[maalis]) -> 0 | F11: =SUM(tblExpenseCategory_11[huhti]) -> 0 | G11: =SUM(tblExpenseCategory_11[touko]) -> 0 | H11: =SUM(tblExpenseCategory_11[kesä]) -> 0 | I11: =SUM(tblExpenseCategory_11[heinä]) -> 0 | J11: =SUM(tblExpenseCategory_11[elo]) -> 0 | K11: =SUM(tblExpenseCategory_11[syys]) -> 0 | L11: =SUM(tblExpenseCategory_11[loka]) -> 0 | M11: =SUM(tblExpenseCategory_11[marras]) -> 0 | N11: =SUM(tblExpenseCategory_11[joulu]) -> 0 | O11: =SUM(tblExpenseCategory_11[vuosi]) -> 0 | P11: =SUM(tblExpenseCategory_11[keskiarvo]) -> 0
B12: =LOWER(Budjetti!B92) -> pakolliset maksut | C12: =SUM(tblExpenseCategory_10[tammi]) -> 650 | D12: =SUM(tblExpenseCategory_10[helmi]) -> 200 | E12: =SUM(tblExpenseCategory_10[maalis]) -> 200 | F12: =SUM(tblExpenseCategory_10[huhti]) -> 650 | G12: =SUM(tblExpenseCategory_10[touko]) -> 200 | H12: =SUM(tblExpenseCategory_10[kesä]) -> 200 | I12: =SUM(tblExpenseCategory_10[heinä]) -> 650 | J12: =SUM(tblExpenseCategory_10[elo]) -> 200 | K12: =SUM(tblExpenseCategory_10[syys]) -> 200 | L12: =SUM(tblExpenseCategory_10[loka]) -> 650 | M12: =SUM(tblExpenseCategory_10[marras]) -> 200 | N12: =SUM(tblExpenseCategory_10[joulu]) -> 200 | O12: =SUM(tblExpenseCategory_10[vuosi]) -> 4,200 | P12: =SUM(tblExpenseCategory_10[keskiarvo]) -> 350
B13: =LOWER(Budjetti!B85) -> säästöt | C13: =SUM(tblExpenseCategory_09[tammi]) -> 800 | D13: =SUM(tblExpenseCategory_09[helmi]) -> 800 | E13: =SUM(tblExpenseCategory_09[maalis]) -> 800 | F13: =SUM(tblExpenseCategory_09[huhti]) -> 800 | G13: =SUM(tblExpenseCategory_09[touko]) -> 800 | H13: =SUM(tblExpenseCategory_09[kesä]) -> 500 | I13: =SUM(tblExpenseCategory_09[heinä]) -> 500 | J13: =SUM(tblExpenseCategory_09[elo]) -> 500 | K13: =SUM(tblExpenseCategory_09[syys]) -> 800 | L13: =SUM(tblExpenseCategory_09[loka]) -> 800 | M13: =SUM(tblExpenseCategory_09[marras]) -> 800 | N13: =SUM(tblExpenseCategory_09[joulu]) -> 800 | O13: =SUM(tblExpenseCategory_09[vuosi]) -> 8,700 | P13: =SUM(tblExpenseCategory_09[keskiarvo]) -> 725
B14: =LOWER(Budjetti!B78) -> hyväntekeväisyys | C14: =SUM(tblExpenseCategory_08[tammi]) -> 0 | D14: =SUM(tblExpenseCategory_08[helmi]) -> 100 | E14: =SUM(tblExpenseCategory_08[maalis]) -> 100 | F14: =SUM(tblExpenseCategory_08[huhti]) -> 100 | G14: =SUM(tblExpenseCategory_08[touko]) -> 100 | H14: =SUM(tblExpenseCategory_08[kesä]) -> 100 | I14: =SUM(tblExpenseCategory_08[heinä]) -> 100 | J14: =SUM(tblExpenseCategory_08[elo]) -> 100 | K14: =SUM(tblExpenseCategory_08[syys]) -> 100 | L14: =SUM(tblExpenseCategory_08[loka]) -> 100 | M14: =SUM(tblExpenseCategory_08[marras]) -> 100 | N14: =SUM(tblExpenseCategory_08[joulu]) -> 100 | O14: =SUM(tblExpenseCategory_08[vuosi]) -> 1,100 | P14: =SUM(tblExpenseCategory_08[keskiarvo]) -> 92
B15: =LOWER(Budjetti!B71) -> koulutus | C15: =SUM(tblExpenseCategory_07[tammi]) -> 0 | D15: =SUM(tblExpenseCategory_07[helmi]) -> 0 | E15: =SUM(tblExpenseCategory_07[maalis]) -> 625 | F15: =SUM(tblExpenseCategory_07[huhti]) -> 0 | G15: =SUM(tblExpenseCategory_07[touko]) -> 0 | H15: =SUM(tblExpenseCategory_07[kesä]) -> 0 | I15: =SUM(tblExpenseCategory_07[heinä]) -> 0 | J15: =SUM(tblExpenseCategory_07[elo]) -> 0 | K15: =SUM(tblExpenseCategory_07[syys]) -> 625 | L15: =SUM(tblExpenseCategory_07[loka]) -> 0 | M15: =SUM(tblExpenseCategory_07[marras]) -> 0 | N15: =SUM(tblExpenseCategory_07[joulu]) -> 0 | O15: =SUM(tblExpenseCategory_07[vuosi]) -> 1,250 | P15: =SUM(tblExpenseCategory_07[keskiarvo]) -> 104
B16: =LOWER(Budjetti!B64) -> vakuutus | C16: =SUM(tblExpenseCategory_06[tammi]) -> 975 | D16: =SUM(tblExpenseCategory_06[helmi]) -> 975 | E16: =SUM(tblExpenseCategory_06[maalis]) -> 975 | F16: =SUM(tblExpenseCategory_06[huhti]) -> 975 | G16: =SUM(tblExpenseCategory_06[touko]) -> 975 | H16: =SUM(tblExpenseCategory_06[kesä]) -> 975 | I16: =SUM(tblExpenseCategory_06[heinä]) -> 975 | J16: =SUM(tblExpenseCategory_06[elo]) -> 975 | K16: =SUM(tblExpenseCategory_06[syys]) -> 975 | L16: =SUM(tblExpenseCategory_06[loka]) -> 975 | M16: =SUM(tblExpenseCategory_06[marras]) -> 975 | N16: =SUM(tblExpenseCategory_06[joulu]) -> 975 | O16: =SUM(tblExpenseCategory_06[vuosi]) -> 11,700 | P16: =SUM(tblExpenseCategory_06[keskiarvo]) -> 975
B17: =LOWER(Budjetti!B57) -> terveys | C17: =SUM(tblExpenseCategory_05[tammi]) -> 25 | D17: =SUM(tblExpenseCategory_05[helmi]) -> 60 | E17: =SUM(tblExpenseCategory_05[maalis]) -> 175 | F17: =SUM(tblExpenseCategory_05[huhti]) -> 25 | G17: =SUM(tblExpenseCategory_05[touko]) -> 60 | H17: =SUM(tblExpenseCategory_05[kesä]) -> 60 | I17: =SUM(tblExpenseCategory_05[heinä]) -> 60 | J17: =SUM(tblExpenseCategory_05[elo]) -> 25 | K17: =SUM(tblExpenseCategory_05[syys]) -> 175 | L17: =SUM(tblExpenseCategory_05[loka]) -> 60 | M17: =SUM(tblExpenseCategory_05[marras]) -> 25 | N17: =SUM(tblExpenseCategory_05[joulu]) -> 25 | O17: =SUM(tblExpenseCategory_05[vuosi]) -> 775 | P17: =SUM(tblExpenseCategory_05[keskiarvo]) -> 65
B18: =LOWER(Budjetti!B48) -> kuljetus | C18: =SUM(tblExpenseCategory_04[tammi]) -> 1,110 | D18: =SUM(tblExpenseCategory_04[helmi]) -> 1,025 | E18: =SUM(tblExpenseCategory_04[maalis]) -> 925 | F18: =SUM(tblExpenseCategory_04[huhti]) -> 1,025 | G18: =SUM(tblExpenseCategory_04[touko]) -> 1,325 | H18: =SUM(tblExpenseCategory_04[kesä]) -> 1,200 | I18: =SUM(tblExpenseCategory_04[heinä]) -> 1,100 | J18: =SUM(tblExpenseCategory_04[elo]) -> 1,200 | K18: =SUM(tblExpenseCategory_04[syys]) -> 1,150 | L18: =SUM(tblExpenseCategory_04[loka]) -> 1,025 | M18: =SUM(tblExpenseCategory_04[marras]) -> 925 | N18: =SUM(tblExpenseCategory_04[joulu]) -> 925 | O18: =SUM(tblExpenseCategory_04[vuosi]) -> 12,935 | P18: =SUM(tblExpenseCategory_04[keskiarvo]) -> 1,078
B19: =LOWER(Budjetti!B39) -> lapset | C19: =SUM(tblExpenseCategory_03[tammi]) -> 2,373 | D19: =SUM(tblExpenseCategory_03[helmi]) -> 500 | E19: =SUM(tblExpenseCategory_03[maalis]) -> 350 | F19: =SUM(tblExpenseCategory_03[huhti]) -> 250 | G19: =SUM(tblExpenseCategory_03[touko]) -> 350 | H19: =SUM(tblExpenseCategory_03[kesä]) -> 450 | I19: =SUM(tblExpenseCategory_03[heinä]) -> 200 | J19: =SUM(tblExpenseCategory_03[elo]) -> 545 | K19: =SUM(tblExpenseCategory_03[syys]) -> 350 | L19: =SUM(tblExpenseCategory_03[loka]) -> 350 | M19: =SUM(tblExpenseCategory_03[marras]) -> 250 | N19: =SUM(tblExpenseCategory_03[joulu]) -> 350 | O19: =SUM(tblExpenseCategory_03[vuosi]) -> 6,318 | P19: =SUM(tblExpenseCategory_03[keskiarvo]) -> 527
B20: =LOWER(Budjetti!B30) -> päivittäiset elinkustannukset | C20: =SUM(tblExpenseCategory_02[tammi]) -> 795 | D20: =SUM(tblExpenseCategory_02[helmi]) -> 375 | E20: =SUM(tblExpenseCategory_02[maalis]) -> 550 | F20: =SUM(tblExpenseCategory_02[huhti]) -> 825 | G20: =SUM(tblExpenseCategory_02[touko]) -> 500 | H20: =SUM(tblExpenseCategory_02[kesä]) -> 450 | I20: =SUM(tblExpenseCategory_02[heinä]) -> 875 | J20: =SUM(tblExpenseCategory_02[elo]) -> 475 | K20: =SUM(tblExpenseCategory_02[syys]) -> 400 | L20: =SUM(tblExpenseCategory_02[loka]) -> 825 | M20: =SUM(tblExpenseCategory_02[marras]) -> 575 | N20: =SUM(tblExpenseCategory_02[joulu]) -> 375 | O20: =SUM(tblExpenseCategory_02[vuosi]) -> 7,020 | P20: =SUM(tblExpenseCategory_02[keskiarvo]) -> 585
B21: =LOWER(Budjetti!B21) -> koti | C21: =SUM(tblExpenseCategory_01[tammi]) -> 1,208 | D21: =SUM(tblExpenseCategory_01[helmi]) -> 1,208 | E21: =SUM(tblExpenseCategory_01[maalis]) -> 1,233 | F21: =SUM(tblExpenseCategory_01[huhti]) -> 1,208 | G21: =SUM(tblExpenseCategory_01[touko]) -> 1,158 | H21: =SUM(tblExpenseCategory_01[kesä]) -> 1,183 | I21: =SUM(tblExpenseCategory_01[heinä]) -> 1,283 | J21: =SUM(tblExpenseCategory_01[elo]) -> 1,333 | K21: =SUM(tblExpenseCategory_01[syys]) -> 1,208 | L21: =SUM(tblExpenseCategory_01[loka]) -> 1,158 | M21: =SUM(tblExpenseCategory_01[marras]) -> 1,208 | N21: =SUM(tblExpenseCategory_01[joulu]) -> 1,208 | O21: =SUM(tblExpenseCategory_01[vuosi]) -> 14,596 | P21: =SUM(tblExpenseCategory_01[keskiarvo]) -> 1,216
B26: Kumulatiivinen kassavirta | C26: =SUM(Budjetti!$C$8:C$8) -> -3,714 | D26: =SUM(Budjetti!$C$8:D$8) -> 76 | E26: =SUM(Budjetti!$C$8:E$8) -> -1,857 | F26: =SUM(Budjetti!$C$8:F$8) -> -3,670 | G26: =SUM(Budjetti!$C$8:G$8) -> -138 | H26: =SUM(Budjetti!$C$8:H$8) -> -3,731 | I26: =SUM(Budjetti!$C$8:I$8) -> -7,974 | J26: =SUM(Budjetti!$C$8:J$8) -> -6,827 | K26: =SUM(Budjetti!$C$8:K$8) -> -8,810 | L26: =SUM(Budjetti!$C$8:L$8) -> -10,753 | M26: =SUM(Budjetti!$C$8:M$8) -> -6,811 | N26: =SUM(Budjetti!$C$8:N$8) -> -7,769 | O26: =SUM(Budjetti!$C$8:O$8) -> -15,538
B28: Vuoden kassavirta positiivinen | C28: =IF(Budjetti!C$8<0,NA(),IF(period+2<>COLUMN(Budjetti!C$8),NA(),Budjetti!C$8)) ->  | D28: =IF(Budjetti!D$8<0,NA(),IF(period+2<>COLUMN(Budjetti!D$8),NA(),Budjetti!D$8)) ->  | E28: =IF(Budjetti!E$8<0,NA(),IF(period+2<>COLUMN(Budjetti!E$8),NA(),Budjetti!E$8)) ->  | F28: =IF(Budjetti!F$8<0,NA(),IF(period+2<>COLUMN(Budjetti!F$8),NA(),Budjetti!F$8)) ->  | G28: =IF(Budjetti!G$8<0,NA(),IF(period+2<>COLUMN(Budjetti!G$8),NA(),Budjetti!G$8)) ->  | H28: =IF(Budjetti!H$8<0,NA(),IF(period+2<>COLUMN(Budjetti!H$8),NA(),Budjetti!H$8)) ->  | I28: =IF(Budjetti!I$8<0,NA(),IF(period+2<>COLUMN(Budjetti!I$8),NA(),Budjetti!I$8)) ->  | J28: =IF(Budjetti!J$8<0,NA(),IF(period+2<>COLUMN(Budjetti!J$8),NA(),Budjetti!J$8)) ->  | K28: =IF(Budjetti!K$8<0,NA(),IF(period+2<>COLUMN(Budjetti!K$8),NA(),Budjetti!K$8)) ->  | L28: =IF(Budjetti!L$8<0,NA(),IF(period+2<>COLUMN(Budjetti!L$8),NA(),Budjetti!L$8)) ->  | M28: =IF(Budjetti!M$8<0,NA(),IF(period+2<>COLUMN(Budjetti!M$8),NA(),Budjetti!M$8)) ->  | N28: =IF(Budjetti!N$8<0,NA(),IF(period+2<>COLUMN(Budjetti!N$8),NA(),Budjetti!N$8)) ->  | O28: =IF(Budjetti!O$8<0,NA(),IF(period+2<>COLUMN(Budjetti!O$8),NA(),Budjetti!O$8)) -> 
B29: Vuoden kassavirta negatiivinen | C29: =IF(Budjetti!C$8>=0,NA(),IF(period+2<>COLUMN(Budjetti!C$8),NA(),Budjetti!C$8)) ->  | D29: =IF(Budjetti!D$8>=0,NA(),IF(period+2<>COLUMN(Budjetti!D$8),NA(),Budjetti!D$8)) ->  | E29: =IF(Budjetti!E$8>=0,NA(),IF(period+2<>COLUMN(Budjetti!E$8),NA(),Budjetti!E$8)) -> -1,933 | F29: =IF(Budjetti!F$8>=0,NA(),IF(period+2<>COLUMN(Budjetti!F$8),NA(),Budjetti!F$8)) ->  | G29: =IF(Budjetti!G$8>=0,NA(),IF(period+2<>COLUMN(Budjetti!G$8),NA(),Budjetti!G$8)) ->  | H29: =IF(Budjetti!H$8>=0,NA(),IF(period+2<>COLUMN(Budjetti!H$8),NA(),Budjetti!H$8)) ->  | I29: =IF(Budjetti!I$8>=0,NA(),IF(period+2<>COLUMN(Budjetti!I$8),NA(),Budjetti!I$8)) ->  | J29: =IF(Budjetti!J$8>=0,NA(),IF(period+2<>COLUMN(Budjetti!J$8),NA(),Budjetti!J$8)) ->  | K29: =IF(Budjetti!K$8>=0,NA(),IF(period+2<>COLUMN(Budjetti!K$8),NA(),Budjetti!K$8)) ->  | L29: =IF(Budjetti!L$8>=0,NA(),IF(period+2<>COLUMN(Budjetti!L$8),NA(),Budjetti!L$8)) ->  | M29: =IF(Budjetti!M$8>=0,NA(),IF(period+2<>COLUMN(Budjetti!M$8),NA(),Budjetti!M$8)) ->  | N29: =IF(Budjetti!N$8>=0,NA(),IF(period+2<>COLUMN(Budjetti!N$8),NA(),Budjetti!N$8)) ->  | O29: =IF(Budjetti!O$8>=0,NA(),IF(period+2<>COLUMN(Budjetti!O$8),NA(),Budjetti!O$8)) -> 
B37: =LOWER(display_long_period) -> maaliskuu
B38: =display_long_period & " Tulot" -> maaliskuu Tulot | C38: =INDEX(Budjetti!$C$6:$P$6,,period) -> €4,000
B39: =display_long_period & " Kulut: " & TEXT(INDEX(Budjetti!$C$7:$P$7,,period),"€#,##0") -> maaliskuu Kulut: €5933,0 | C39: =INDEX(Budjetti!$C$7:$P$7,,period) -> €5,933
B40: =display_long_period & " Kassavirta" -> maaliskuu Kassavirta | C40: =ABS(INDEX(Budjetti!$C$8:$P$8,,period)) -> €1,933 | D40: =REPT("-",INDEX(Budjetti!$C$8:$P$8,,period)<0) -> -
